bitfinex-derivatives/quotes_ETHF0:USTF0_20260119
["timestamp","ask_amount","ask_price","bid_price","bid_amount"]
[1768864162538,0.00308718,3179.9,3178.1,4.236]
[1768864162740,0.00308718,3179.9,3178.1,7.3873457]
[1768864162944,0.00308718,3179.9,3178.1,0.0023457]
[1768864163140,0.00308718,3179.9,3178.2,6.732]
[1768864164134,0.00308718,3179.9,3178.3,7.381]
[1768864164743,0.00308718,3179.9,3178.1,0.0023457]
[1768864164941,5.79940451,3179.8,3178.1,0.0023457]
[1768864165144,5.79940451,3179.7,3178.1,0.0023457]
[1768864165346,1.30446738,3179.6,3178.1,0.0023457]
[1768864165537,1.30446738,3179.5,3178.1,0.0023457]
[1768864165739,1.30446738,3179.4,3178.1,0.0023457]
[1768864165940,0.86602665,3179.3,3178.1,0.0023457]
[1768864166145,0.86671111,3179.2,3178.1,0.0023457]
[1768864166339,1.09932564,3179.6,3178.1,0.0023457]
[1768864166541,1.30549123,3179.5,3178.1,0.0023457]
[1768864166741,1.30549123,3179.4,3178.1,0.0023457]
[1768864166941,0.00308718,3179.9,3178.2,3.35433685]
[1768864167839,0.00308718,3179.9,3178.3,7.376]
[1768864168644,0.00308718,3179.9,3178.4,4.227]
[1768864168847,0.00308718,3179.9,3178.4,7.375]
[1768864169742,0.00308718,3179.9,3178.2,3.35433685]
[1768864170151,0.00308718,3179.9,3178.1,3.1503457]
[1768864170152,0.86600287,3179.8,3178.1,3.1503457]
[1768864170442,0.86588728,3179.7,3178.1,3.1503457]
[1768864170745,0.00308718,3179.9,3178.1,3.1503457]
[1768864170945,1.30424143,3179.8,3178.1,3.1503457]
[1768864171247,0.00308718,3179.9,3178.2,3.35433685]
[1768864172150,0.00308718,3179.9,3178.3,7.37]
[1768864172556,0.00308718,3179.9,3178.4,3.35433685]
[1768864173250,1.09932564,3181.0,3178.4,3.35433685]
[1768864173542,0.43850021,3180.9,3178.4,3.35433685]
[1768864173743,1.30460408,3180.8,3178.6,3.35433685]
[1768864173949,1.30460408,3180.7,3178.6,3.35433685]
[1768864174147,0.00286494,3180.7,3178.6,3.35433685]
[1768864174746,0.00286494,3180.7,3178.9,3.35433685]
[1768864175744,1.09932564,3181.6,3179.2,3.35433685]
[1768864176047,1.30482253,3181.5,3179.2,3.35433685]
[1768864176250,1.09932564,3181.9,3179.2,3.35433685]
[1768864176442,0.4380231,3181.8,3179.2,3.35433685]
[1768864176640,1.30407652,3181.7,3179.2,3.35433685]
[1768864176842,0.86605342,3181.6,3179.2,3.35433685]
[1768864177039,0.00382985,3181.8,3179.6,3.35433685]
[1768864177239,0.00382985,3181.8,3179.5,4.56336289]
[1768864177240,0.00382985,3181.8,3179.8,3.35433685]
[1768864177444,0.00382985,3181.8,3180.0,3.35433685]
[1768864177653,0.00382985,3181.8,3180.1,4.215]
[1768864177838,0.00382985,3181.8,3180.1,7.363]
[1768864178041,0.00382985,3181.8,3180.2,7.362]
[1768864178449,0.00382985,3181.8,3180.0,3.35433685]
[1768864178750,0.00382985,3181.8,3180.2,3.35433685]
[1768864178940,0.00382985,3181.8,3180.4,3.35433685]
[1768864179144,0.00382985,3181.8,3180.4,3.35691111]
[1768864179347,0.00382985,3181.8,3180.5,7.36]
[1768864180056,0.00382985,3181.8,3180.4,3.35691111]
[1768864180246,0.00382985,3181.8,3180.4,6.50391111]
[1768864180750,0.00382985,3181.8,3180.5,3.35433685]
[1768864181147,0.00382985,3181.8,3180.6,6.59771008]
[1768864181350,0.00382985,3181.8,3180.7,3.45071008]
[1768864181741,3.28934314,3181.8,3180.4,0.00257426]
[1768864182055,3.28934314,3181.8,3180.0,3.147]
[1768864182443,3.28934314,3181.8,3180.1,6.517]
[1768864182650,3.28934314,3181.8,3180.2,3.147]
[1768864182849,3.28934314,3181.8,3180.2,3.14959562]
[1768864183151,3.28934314,3181.8,3180.2,0.00259562]
[1768864183152,0.00382985,3181.8,3180.2,0.00259562]
[1768864183354,0.00382985,3181.8,3180.3,7.212]
[1768864183546,0.00382985,3181.8,3180.2,0.00259562]
[1768864183547,3.28551329,3181.6,3179.0,3.45071008]
[1768864183746,4.38483893,3181.3,3179.0,3.45071008]
[1768864184050,1.30059953,3181.2,3179.0,3.45071008]
[1768864184247,0.86379978,3181.1,3179.0,3.45071008]
[1768864184554,1.09932564,3181.5,3179.0,3.45380889]
[1768864184854,1.30089539,3181.4,3179.0,3.45380889]
[1768864185057,1.30089539,3181.3,3179.0,3.45380889]
[1768864185246,1.30089539,3181.2,3179.0,3.45380889]
[1768864185555,4.38483893,3181.7,3179.0,3.45380889]
[1768864185752,1.30134954,3181.6,3179.0,3.45380889]
[1768864186057,1.53654244,3181.5,3179.1,6.59771008]
[1768864186357,1.30158146,3181.4,3179.1,6.59771008]
[1768864186650,1.30158146,3181.3,3179.2,3.45071008]
[1768864186857,1.30158146,3181.2,3179.2,3.45071008]
[1768864187052,0.86413274,3181.1,3179.2,3.45071008]
[1768864187353,3.28551329,3181.4,3179.2,3.45071008]
[1768864187566,1.30251954,3181.3,3179.2,3.45071008]
[1768864187756,1.30251954,3181.2,3179.2,3.45071008]
[1768864187960,3.28551329,3181.4,3179.2,3.45071008]
[1768864188258,1.30263221,3181.3,3179.2,3.45071008]
[1768864188453,1.09932564,3181.6,3179.2,3.45071008]
[1768864188454,0.86480622,3181.2,3179.2,3.45071008]
[1768864188760,3.28551329,3181.7,3179.3,6.59771008]
[1768864189060,1.30331197,3181.6,3179.4,3.45071008]
[1768864189360,1.30331197,3181.5,3179.4,3.45071008]
[1768864189657,1.30331197,3181.4,3179.4,3.45071008]
[1768864189851,0.86540603,3181.3,3179.4,3.45071008]
[1768864190052,3.28551329,3181.6,3179.4,3.45071008]
[1768864190257,1.30424703,3181.5,3179.4,3.45071008]
[1768864190455,1.30424703,3181.4,3179.4,3.45071008]
[1768864190654,0.86620413,3181.3,3179.4,3.45071008]
[1768864190959,3.28551329,3181.6,3179.4,3.45071008]
[1768864191259,1.30429844,3181.5,3179.4,3.45071008]
[1768864191460,1.30429844,3181.4,3179.4,3.45071008]
[1768864191650,0.86620344,3181.3,3179.4,3.45071008]
[1768864191849,1.09932564,3181.7,3179.5,3.45071008]
[1768864192055,0.43815346,3181.6,3179.5,3.45071008]
[1768864192361,1.30448767,3181.5,3179.5,3.45071008]
[1768864192558,1.09932564,3181.7,3179.5,3.45071008]
[1768864192559,0.86633421,3181.4,3179.5,3.45071008]
[1768864192756,1.10315549,3181.8,3179.6,3.42039469]
[1768864192956,1.30465372,3181.7,3179.7,3.45071008]
[1768864193159,0.86643061,3181.6,3179.7,3.45071008]
[1768864193357,0.00382985,3181.8,3179.7,3.45071008]
[1768864193556,1.30481065,3181.7,3179.7,3.45071008]
[1768864193756,0.86652699,3181.6,3179.7,3.45071008]
[1768864193963,0.00382985,3181.8,3179.7,3.45071008]
[1768864194164,1.30481271,3181.7,3179.7,3.45071008]
[1768864194363,0.86652741,3181.6,3179.7,3.45071008]
[1768864194563,0.00382985,3181.8,3179.7,3.45071008]
[1768864194758,1.30491087,3181.7,3179.7,3.45071008]
[1768864194959,0.86658651,3181.6,3179.7,3.45071008]
[1768864195155,4.72525236,3181.5,3179.1,3.32016183]
[1768864195360,1.09932564,3181.3,3179.2,3.32016183]
[1768864195667,0.43827116,3181.2,3179.2,3.32016183]
[1768864195859,0.86658651,3181.1,3179.2,3.32016183]
[1768864196055,0.43827116,3181.0,3179.2,3.32016183]
[1768864196260,0.86658651,3180.9,3179.2,3.32016183]
[1768864196655,0.86658651,3180.8,3179.2,3.32016183]
[1768864196867,1.09932564,3181.3,3179.2,3.32016183]
[1768864197061,4.0329312,3181.2,3179.2,3.32016183]
[1768864197263,1.09932564,3180.9,3179.0,0.00309881]
[1768864197574,1.09932564,3180.7,3179.0,0.00309881]
[1768864197867,0.43870964,3180.6,3179.0,0.00309881]
[1768864198164,0.86728863,3180.5,3179.0,0.00309881]
[1768864198362,0.43870964,3180.4,3179.0,0.00309881]
[1768864198566,0.86728863,3180.3,3179.0,0.00309881]
[1768864198969,4.6935472,3180.7,3179.0,0.00309881]
[1768864199167,1.09932564,3180.5,3179.0,0.00309881]
[1768864199369,0.43876919,3180.4,3179.0,0.00309881]
[1768864199562,1.30622581,3180.3,3179.0,0.00309881]
[1768864199762,0.86745662,3180.2,3179.0,0.00309881]
[1768864200061,0.86745662,3180.1,3179.0,0.00309881]
[1768864200263,1.09932564,3180.5,3179.0,0.00309881]
[1768864200462,0.43896374,3180.4,3179.0,0.00309881]
[1768864200768,0.86783318,3180.3,3179.0,3.32326064]
[1768864200968,1.09932564,3180.7,3179.0,3.32326064]
[1768864201168,1.30642844,3180.6,3179.0,3.32326064]
[1768864201369,1.09932564,3180.4,3179.0,0.00309881]
[1768864201565,1.09932564,3180.2,3179.0,0.00309881]
[1768864201771,0.43848671,3180.1,3179.0,0.00309881]
[1768864201968,1.53781235,3180.0,3177.9,3.32016183]
[1768864202270,1.09932564,3179.8,3177.9,3.32016183]
[1768864202579,0.43848671,3179.7,3177.9,3.32016183]
[1768864202770,1.30606958,3179.6,3177.9,3.32016183]
[1768864202971,1.09932564,3179.8,3177.9,3.32380574]
[1768864202972,1.30606958,3179.5,3177.9,3.32380574]
[1768864203167,0.86758287,3179.4,3177.9,3.32380574]
[1768864203467,0.00275195,3179.5,3177.9,3.32380574]
[1768864203673,0.86461862,3179.4,3178.0,6.74055652]
[1768864203867,0.00275195,3179.5,3178.0,3.32016183]
[1768864204071,0.86458219,3179.4,3178.0,3.32016183]
[1768864204260,0.00275195,3179.5,3177.9,0.00364391]
[1768864204462,0.86398909,3179.4,3177.9,0.00364391]
[1768864204774,0.86402548,3179.3,3177.9,0.00364391]
[1768864205068,0.00275195,3179.5,3177.9,0.00364391]
[1768864205276,0.86347715,3179.4,3177.9,0.00364391]
[1768864205472,0.00275195,3179.5,3177.9,0.00364391]
[1768864205676,1.02083012,3179.4,3177.9,0.00364391]
[1768864205876,0.00275195,3179.5,3177.9,0.00364391]
[1768864206078,0.15737,3179.2,3177.9,0.00364391]
[1768864206274,0.15738,3179.1,3177.9,0.00364391]
[1768864208466,0.15738,3178.9,3177.9,0.00364391]
[1768864208868,0.15739,3178.8,3177.9,0.00364391]
[1768864209071,0.25193729,3178.9,3176.9,3.32016183]
[1768864209379,4.6935472,3179.4,3176.9,3.32016183]
[1768864209380,0.86175328,3178.8,3176.9,3.32016183]
[1768864209572,0.86175328,3178.7,3176.9,3.32016183]
[1768864209882,7.01461625,3179.0,3176.9,3.32016183]
[1768864210181,1.2982803,3178.9,3176.9,3.3229611]
[1768864210370,1.29799659,3178.8,3176.9,3.3229611]
[1768864210569,1.29799659,3178.7,3176.9,3.3229611]
[1768864210768,1.29799659,3178.6,3176.9,3.3229611]
[1768864210971,0.86177563,3178.5,3176.9,3.3229611]
[1768864211165,8.36090458,3179.0,3176.9,3.3229611]
[1768864211374,1.29716536,3178.9,3176.9,3.3229611]
[1768864211572,0.15742,3178.3,3176.9,3.3229611]
[1768864212679,0.15742,3178.2,3176.9,3.3229611]
[1768864212876,0.15743,3178.1,3176.9,3.3229611]
[1768864216684,1.09932564,3179.7,3177.6,3.32016183]
[1768864216880,3.59422156,3179.3,3177.0,3.32016183]
[1768864217181,0.15741,3178.5,3177.0,3.32016183]
[1768864217686,0.15741,3178.4,3177.0,3.32016183]
[1768864217873,0.15738,3179.1,3177.0,6.74055652]
[1768864218080,0.15738,3179.1,3177.1,3.32016183]
[1768864218680,0.15738,3179.0,3177.1,3.32016183]
[1768864219576,0.15747,3177.2,3175.5,3.32016183]
[1768864219781,0.15748,3176.9,3175.5,3.32016183]
[1768864219976,0.15749,3176.8,3174.9,3.32016183]
[1768864220278,0.15749,3176.8,3175.1,3.32016183]
[1768864220478,0.15998885,3176.8,3175.1,3.32359112]
[1768864221983,0.15998885,3176.8,3175.2,3.149]
[1768864222180,0.15998885,3176.8,3175.2,3.32016183]
[1768864222486,0.00249885,3176.8,3175.1,0.00342929]
[1768864223393,0.15751,3176.4,3175.1,3.29007229]
[1768864225396,0.15751,3176.4,3175.1,6.43907229]
[1768864226206,0.15751,3176.4,3175.1,3.29007229]
[1768864228708,0.00249885,3176.8,3175.1,3.29007229]
[1768864229811,0.15754,3175.8,3175.1,9.29e-06]
[1768864230707,3.5660587,3176.8,3175.1,9.29e-06]
[1768864231009,0.15751,3176.4,3175.1,9.29e-06]
[1768864231604,0.15751,3176.3,3175.1,9.29e-06]
[1768864235307,0.00249885,3176.8,3175.1,3.28665229]
[1768864235912,0.15998885,3176.8,3175.1,3.28665229]
[1768864236216,0.15751,3176.5,3175.1,3.28665229]
[1768864236412,3.5660587,3176.8,3175.1,9.29e-06]
[1768864236606,0.15753,3176.0,3175.1,9.29e-06]
[1768864236809,0.15755,3175.6,3175.1,9.29e-06]
[1768864237019,0.15755,3175.6,3174.0,6.536643]
[1768864238012,0.15755,3175.6,3174.0,3.386643]
[1768864238213,0.15755,3175.6,3174.0,6.54023262]
[1768864239115,0.15755,3175.6,3174.0,3.38923262]
[1768864239519,0.15755,3175.5,3174.0,3.38923262]
[1768864239715,0.15756,3175.4,3174.0,3.38923262]
[1768864240026,0.15759,3174.7,3172.9,3.286643]
[1768864240314,3.81685573,3174.9,3172.9,3.286643]
[1768864240513,0.86044975,3174.8,3172.9,3.286643]
[1768864240703,0.15758,3175.0,3172.9,3.286643]
[1768864240907,1.01803149,3174.9,3172.9,3.286643]
[1768864241112,0.1576,3174.6,3172.9,3.29029155]
[1768864241313,0.15761,3174.4,3172.9,0.00364855]
[1768864241507,0.15761,3174.3,3172.9,0.00364855]
[1768864241708,0.15763,3174.0,3172.9,0.00364855]
[1768864242714,0.15763,3173.9,3172.9,0.00364855]
[1768864244910,0.15765,3173.6,3172.9,0.00364855]
[1768864245311,0.15765,3173.5,3171.9,3.39797643]
[1768864245512,3.34111982,3174.3,3171.9,3.39797643]
[1768864245819,3.15515515,3174.4,3171.9,3.39797643]
[1768864245820,3.34111982,3174.1,3171.9,3.39797643]
[1768864246007,3.34111982,3173.9,3171.9,3.39797643]
[1768864246210,0.15763,3174.0,3171.9,3.39797643]
[1768864246517,0.15763,3174.0,3171.9,3.40070529]
[1768864247019,0.15763,3174.0,3172.0,3.39797643]
[1768864248215,3.34111982,3174.2,3172.0,3.39797643]
[1768864248419,0.15765,3173.7,3172.0,3.39797643]
[1768864249024,3.34111982,3174.2,3172.0,3.39797643]
[1768864249322,3.34111982,3174.2,3171.9,0.00272886]
[1768864249323,0.15766,3173.3,3171.9,0.00272886]
[1768864249708,3.34111982,3173.8,3171.9,0.00272886]
[1768864249915,0.15767,3173.2,3171.9,0.00272886]
[1768864250915,0.15767,3173.2,3171.9,3.40070529]
[1768864251915,0.15764,3173.9,3171.9,3.40070529]
[1768864252721,0.00315515,3174.4,3172.1,3.55569643]
[1768864252912,0.00315515,3174.4,3172.3,2.88297389]
[1768864253118,0.00315515,3174.4,3172.5,2.88297389]
[1768864254716,0.16076515,3174.4,3172.5,2.88297389]
[1768864254916,0.16076515,3174.4,3172.5,6.03597389]
[1768864255119,0.16076515,3174.4,3172.6,2.88297389]
[1768864258729,0.16076515,3174.4,3172.8,2.88297389]
[1768864260230,0.00315515,3174.4,3172.8,2.88297389]
[1768864260526,0.15764,3173.8,3172.3,2.88297389]
[1768864261921,0.00315515,3174.4,3172.3,2.88297389]
[1768864262423,0.15763,3174.0,3172.3,2.88297389]
[1768864265026,0.15763,3174.0,3172.5,2.88297389]
[1768864269220,0.86699533,3173.9,3172.5,2.88297389]
[1768864269427,0.15763,3174.0,3172.5,2.88297389]
[1768864269720,0.86705452,3173.9,3172.5,2.88297389]
[1768864269925,0.15763,3174.0,3172.5,2.88297389]
[1768864270222,0.86710026,3173.9,3172.5,2.88297389]
[1768864270428,0.15763,3174.0,3172.5,2.88297389]
[1768864270627,0.86730365,3173.9,3172.5,2.88297389]
[1768864270827,0.15763,3174.0,3172.5,2.88297389]
[1768864271025,0.86731124,3173.9,3172.5,2.88297389]
[1768864271231,0.15763,3174.0,3172.5,2.88297389]
[1768864271525,0.00315515,3174.4,3172.5,2.88297389]
[1768864271731,1.30374591,3174.3,3172.5,2.88297389]
[1768864271932,1.30374591,3174.2,3172.5,2.88297389]
[1768864272133,0.86742272,3174.1,3172.5,2.88297389]
[1768864272319,0.00315515,3174.4,3172.5,2.88297389]
[1768864272320,0.15762,3174.2,3172.5,2.88297389]
[1768864272523,0.86739849,3174.1,3172.5,2.88297389]
[1768864272719,0.15762,3174.2,3172.5,2.88297389]
[1768864272928,0.86740056,3174.1,3172.5,2.88297389]
[1768864273127,0.00315515,3174.4,3172.5,2.88297389]
[1768864273934,0.00315515,3174.4,3172.8,2.88297389]
[1768864275536,0.00315515,3174.4,3172.9,2.88297389]
[1768864275732,0.00315515,3174.4,3173.0,2.88297389]
[1768864276427,1.30356993,3174.3,3172.5,2.88297389]
[1768864276630,1.30356993,3174.2,3172.5,2.88297389]
[1768864276936,0.86734266,3174.1,3172.5,2.88297389]
[1768864277233,0.00315515,3174.4,3172.5,2.88297389]
[1768864277736,0.00315515,3174.4,3172.5,3.04067389]
[1768864278327,0.00315515,3174.4,3172.7,3.04066389]
[1768864278636,0.00315515,3174.4,3172.9,2.88297389]
[1768864280925,0.00315515,3174.4,3172.9,6.31623277]
[1768864281121,0.15757,3175.1,3173.0,2.88297389]
[1768864281330,1.30411727,3175.0,3173.0,2.88297389]
[1768864281530,1.30411727,3174.9,3173.0,2.88297389]
[1768864281726,0.86798693,3174.8,3173.0,2.88297389]
[1768864281934,0.86798693,3174.7,3173.0,2.88297389]
[1768864282132,0.00279759,3174.7,3173.0,3.04065389]
[1768864282629,1.09932564,3175.4,3173.5,2.88297389]
[1768864282822,1.30454409,3175.3,3173.7,2.88297389]
[1768864283025,1.30454409,3175.2,3173.7,2.88297389]
[1768864283227,0.86814976,3175.1,3173.7,2.88297389]
[1768864283425,1.09932564,3175.5,3173.7,2.88297389]
[1768864283738,1.30569006,3175.4,3173.7,2.88297389]
[1768864283935,0.00226794,3175.5,3174.0,2.12111289]
[1768864284330,1.09932564,3176.6,3174.5,2.12111289]
[1768864284527,0.43336651,3176.5,3174.5,2.12111289]
[1768864284722,0.15749,3176.8,3175.0,2.12111289]
[1768864285032,0.86920233,3176.7,3175.1,2.12111289]
[1768864285229,0.00371296,3176.7,3175.1,2.12479523]
[1768864285930,0.00371296,3176.7,3175.3,2.12111289]
[1768864287037,0.00371296,3176.7,3175.5,2.12111289]
[1768864287634,0.15745,3177.5,3175.6,4.076]
[1768864287826,0.15745,3177.5,3175.7,5.27311289]
[1768864288022,0.15745,3177.5,3175.8,2.12111289]
[1768864288233,2.16205324,3178.2,3176.0,2.12111289]
[1768864288432,1.02282321,3178.1,3176.0,2.12111289]
[1768864288632,0.86540321,3178.0,3176.0,2.12111289]
[1768864289138,0.00338149,3178.1,3176.1,5.27311289]
[1768864289339,0.00338149,3178.1,3176.2,2.12111289]
[1768864289631,0.15745,3177.6,3176.2,2.12111289]
[1768864289835,2.14400971,3178.1,3175.7,2.12111289]
[1768864290032,0.15746,3177.5,3175.7,2.12111289]
[1768864291837,1.97039428,3177.8,3175.7,2.12111289]
[1768864292038,0.15747,3177.2,3175.7,2.12111289]
[1768864293735,0.15744,3177.9,3175.7,2.12111289]
[1768864294240,0.15744,3177.8,3175.7,2.12111289]
[1768864294938,0.15745,3177.7,3175.7,2.12111289]
[1768864295134,0.00338149,3178.1,3175.7,2.12111289]
[1768864295135,1.73135841,3178.1,3175.7,2.12111289]
[1768864295342,0.15748,3177.0,3175.7,2.12111289]
[1768864301048,0.15745,3177.6,3175.7,2.12111289]
[1768864301740,0.15745,3177.6,3175.9,1.64704545]
[1768864302332,1.37802784,3178.1,3175.9,1.64704545]
[1768864302545,0.15747,3177.2,3175.9,1.64704545]
[1768864309252,0.15744,3177.7,3175.9,1.64704545]
[1768864309953,0.15745,3177.6,3175.9,1.64704545]
[1768864310750,0.00338149,3178.1,3176.9,1.64704545]
[1768864311259,0.00338149,3178.1,3176.9,5.08030433]
[1768864311455,1.09932564,3179.0,3177.0,1.64704545]
[1768864311456,0.15738,3179.0,3177.0,1.64704545]
[1768864311644,1.30161409,3178.9,3177.0,1.64704545]
[1768864311951,1.30161409,3178.8,3177.0,1.64704545]
[1768864312151,0.15741,3178.5,3177.0,1.64704545]
[1768864312451,0.15741,3178.4,3177.0,1.64704545]
[1768864318362,0.00269874,3178.5,3177.0,1.64704545]
[1768864320061,1.09932564,3179.4,3177.5,1.53831144]
[1768864320267,0.86961993,3179.3,3177.5,1.53831144]
[1768864320466,0.86961993,3179.2,3177.5,1.53831144]
[1768864320761,0.15736,3179.5,3177.5,1.53831144]
[1768864321067,1.29987457,3179.4,3177.5,1.54118238]
[1768864321258,1.29987457,3179.3,3177.5,1.54118238]
[1768864321564,0.86960443,3179.2,3177.5,1.54118238]
[1768864321767,0.16063796,3179.5,3177.5,1.54118238]
[1768864321963,1.29914926,3179.4,3177.5,1.54118238]
[1768864322164,0.86911374,3179.3,3177.5,1.54118238]
[1768864322464,0.86911374,3179.2,3177.5,1.54118238]
[1768864322656,0.16063796,3179.5,3177.5,1.54118238]
[1768864322857,0.86735044,3179.4,3177.5,1.54118238]
[1768864323056,0.16063796,3179.5,3177.5,1.54118238]
[1768864323363,0.86736155,3179.4,3177.5,1.54118238]
[1768864323567,0.16063796,3179.5,3177.5,1.54118238]
[1768864323763,0.86698753,3179.4,3177.5,1.54118238]
[1768864323961,0.16063796,3179.5,3177.5,1.54118238]
[1768864324560,0.1574,3178.6,3177.5,0.00287094]
[1768864324767,0.15741,3178.4,3177.5,0.00287094]
[1768864325464,0.86629207,3178.3,3177.5,0.00287094]
[1768864325670,0.15741,3178.4,3177.5,0.00287094]
[1768864325970,1.02365965,3178.3,3177.5,0.00287094]
[1768864326273,0.15741,3178.3,3177.5,0.00287094]
[1768864326763,0.15744,3177.9,3176.8,1.53831144]
[1768864327365,0.15744,3177.8,3175.8,1.53831144]
[1768864327770,0.15744,3177.8,3175.8,1.54073285]
[1768864328073,0.15744,3177.7,3175.8,1.54073285]
[1768864328368,1.09932564,3178.2,3175.8,1.54073285]
[1768864328576,0.15746,3177.4,3175.8,1.54073285]
[1768864328767,0.86634099,3177.3,3175.8,1.54073285]
[1768864328964,0.15746,3177.4,3175.8,1.54073285]
[1768864329165,0.86625388,3177.3,3175.8,1.54073285]
[1768864329362,0.15746,3177.4,3175.8,1.54073285]
[1768864329562,0.15749,3176.8,3175.8,0.00242141]
[1768864329765,0.15749,3176.7,3175.3,1.53831144]
[1768864329984,0.15751,3176.4,3174.5,1.53831144]
[1768864330271,0.15751,3176.3,3174.5,1.53831144]
[1768864330869,0.15751,3176.3,3174.5,1.54177619]
[1768864332877,3.149,3176.7,3174.5,1.54177619]
[1768864333078,1.29292159,3176.6,3174.5,1.54177619]
[1768864333381,0.8645434,3176.5,3174.5,1.54177619]
[1768864333687,0.8645434,3176.4,3174.5,1.54177619]
[1768864333896,3.30751,3176.3,3174.5,1.54177619]
[1768864334078,0.15752,3176.1,3174.5,1.54177619]
[1768864335680,0.15753,3176.0,3174.5,1.54177619]
[1768864335881,0.15754,3175.9,3174.5,1.54177619]
[1768864338084,0.15754,3175.8,3174.5,1.54177619]
[1768864340284,3.15,3176.3,3174.5,1.54177619]
[1768864340285,0.15755,3175.6,3174.5,1.54177619]
[1768864341581,0.15752,3176.2,3174.5,1.54177619]
[1768864342381,0.1607226,3176.8,3174.7,1.53831144]
[1768864342594,0.1607226,3176.8,3174.9,1.53831144]
[1768864343192,0.15749,3176.7,3174.9,1.53831144]
[1768864344689,0.0032326,3176.8,3174.9,1.69589144]
[1768864344895,0.0032326,3176.8,3175.1,1.29081156]
[1768864346382,0.15753,3176.0,3175.1,1.13324156]
[1768864346693,0.15754,3175.8,3174.6,1.13324156]
[1768864347685,3.30851,3176.5,3174.6,1.13324156]
[1768864347892,3.151,3176.5,3174.6,1.13324156]
[1768864348598,0.15753,3176.1,3174.6,1.13324156]
[1768864350284,3.1542326,3176.8,3174.6,1.13324156]
[1768864350285,0.0032326,3176.8,3174.6,1.13324156]
[1768864350496,0.1575,3176.6,3174.6,1.13324156]
[1768864351495,0.0032326,3176.8,3174.6,1.13324156]
[1768864352001,0.15753,3176.0,3174.6,1.13324156]
[1768864352898,0.1575,3176.7,3174.6,1.13324156]
[1768864353388,0.1575,3176.7,3174.6,1.29083156]
[1768864353902,0.1575,3176.6,3174.6,1.29083156]
[1768864354899,0.1575,3176.5,3174.6,1.29083156]
[1768864357201,0.1575,3176.5,3174.8,1.13324156]
[1768864365504,0.0032326,3176.8,3175.0,0.85151605]
[1768864365802,0.86849774,3176.7,3175.0,0.85151605]
[1768864365999,0.0032326,3176.8,3175.0,0.85151605]
[1768864366199,0.86849776,3176.7,3175.0,0.85151605]
[1768864366401,0.0032326,3176.8,3175.0,0.85151605]
[1768864366699,0.86853344,3176.7,3175.0,0.85151605]
[1768864366902,0.0032326,3176.8,3175.0,0.85151605]
[1768864367101,0.86853223,3176.7,3175.0,0.85151605]
[1768864367398,0.0032326,3176.8,3175.0,0.85151605]
[1768864367599,0.86863297,3176.7,3175.0,0.85151605]
[1768864367903,0.0032326,3176.8,3175.0,0.85151605]
[1768864368207,0.86863901,3176.7,3175.0,0.85151605]
[1768864368409,0.0032326,3176.8,3175.0,0.85151605]
[1768864368608,0.86875732,3176.7,3175.0,0.85151605]
[1768864368907,0.0032326,3176.8,3175.0,0.85151605]
[1768864369103,0.86875872,3176.7,3175.0,0.85151605]
[1768864369301,0.0032326,3176.8,3175.0,0.85151605]
[1768864369608,0.8688796,3176.7,3175.0,0.85151605]
[1768864369907,0.0032326,3176.8,3175.0,0.85151605]
[1768864370209,0.86887942,3176.7,3175.0,0.85151605]
[1768864370508,0.0032326,3176.8,3175.0,0.85151605]
[1768864370807,0.86907709,3176.7,3175.0,0.85151605]
[1768864371003,0.0032326,3176.8,3175.0,0.85151605]
[1768864371401,0.86936435,3176.7,3175.0,0.85151605]
[1768864371603,0.0032326,3176.8,3175.0,1.00909605]
[1768864371902,0.86935637,3176.7,3175.0,1.00909605]
[1768864372106,0.0032326,3176.8,3175.0,1.00909605]
[1768864373506,0.0032326,3176.8,3175.2,0.77042393]
[1768864373706,0.0032326,3176.8,3175.4,0.77042393]
[1768864374311,0.0032326,3176.8,3175.4,0.92798393]
[1768864377408,0.15754,3175.8,3174.5,0.00346475]
[1768864377712,1.25688005,3176.4,3174.5,0.00346475]
[1768864377913,1.31639031,3176.3,3174.5,0.00346475]
[1768864378108,1.31639031,3176.2,3174.5,0.00346475]
[1768864378304,1.31639031,3176.1,3174.5,0.00346475]
[1768864378504,0.88559812,3176.0,3174.5,0.00346475]
[1768864378703,0.15751,3176.5,3174.5,0.00346475]
[1768864379009,1.316486,3176.4,3174.5,0.00346475]
[1768864379208,1.316486,3176.3,3174.5,0.00346475]
[1768864379407,1.316486,3176.2,3174.6,0.77042393]
[1768864379709,0.88560978,3176.1,3174.6,0.77042393]
[1768864379911,0.15751,3176.5,3174.6,0.77042393]
[1768864380111,1.31652297,3176.4,3174.6,0.77042393]
[1768864380302,0.15751,3176.5,3174.6,0.77042393]
[1768864380303,1.31652297,3176.3,3174.6,0.77042393]
[1768864380508,0.88563362,3176.2,3174.6,0.77042393]
[1768864380710,0.0032326,3176.8,3174.6,0.77042393]
[1768864380911,0.8858704,3176.7,3174.9,0.77042393]
[1768864381111,0.88586611,3176.6,3174.9,0.77042393]
[1768864381306,0.0032326,3176.8,3174.9,0.77042393]
[1768864381503,0.88591303,3176.7,3174.9,0.77042393]
[1768864381706,0.0032326,3176.8,3174.9,0.77042393]
[1768864381907,0.88591167,3176.7,3174.9,0.77042393]
[1768864382107,0.0032326,3176.8,3174.9,0.77042393]
[1768864382310,0.88619907,3176.7,3174.9,0.77042393]
[1768864382510,0.0032326,3176.8,3174.9,0.77042393]
[1768864382703,0.88640969,3176.7,3175.1,0.77042393]
[1768864382908,0.0032326,3176.8,3175.1,0.77042393]
[1768864383313,0.0032326,3176.8,3175.1,0.92799393]
[1768864383516,0.0032326,3176.8,3175.3,0.77042393]
[1768864383909,0.0032326,3176.8,3175.5,0.77042393]
[1768864384418,0.0032326,3176.8,3175.5,0.92797393]
[1768864384711,0.0032326,3176.8,3174.6,6.58609171]
[1768864384712,1.09937005,3178.1,3175.7,0.77042393]
[1768864384917,0.4312411,3178.0,3175.7,0.92796393]
[1768864385116,1.31783,3177.9,3175.7,0.92796393]
[1768864385316,1.31756585,3177.8,3175.7,0.92796393]
[1768864385511,0.88632475,3177.7,3175.7,0.92796393]
[1768864385713,0.88632475,3177.6,3175.7,0.92796393]
[1768864385902,0.00392984,3177.7,3175.7,0.92796393]
[1768864386103,0.88632057,3177.6,3175.7,0.92796393]
[1768864386318,0.00392984,3177.7,3175.9,0.77042393]
[1768864387006,0.00392984,3177.7,3176.1,0.77042393]
[1768864387516,0.00392984,3177.7,3176.1,0.92794393]
[1768864387718,0.00392984,3177.7,3176.3,0.92793393]
[1768864389313,0.00392984,3177.7,3176.3,0.77042393]
[1768864404122,0.00392984,3177.7,3176.3,0.92793393]
[1768864404322,3.15,3178.5,3176.3,0.92793393]
[1768864404527,0.88462712,3178.4,3176.3,0.92793393]
[1768864404831,0.88462712,3178.3,3176.3,0.92793393]
[1768864405138,3.15,3178.5,3176.3,0.92793393]
[1768864405428,0.88462682,3178.4,3176.3,0.92793393]
[1768864405614,0.88462682,3178.3,3176.4,0.15751]